[Event "Early-Titled-Tuesday-Blitz-May-14-2024"]
[Site "Chess.com"]
[Date "2024.05.14"]
[Round "6"]
[White "Timerkhanov"]
[Black "platy3"]
[Result "0-1"]
[WhiteElo "2717"]
[BlackElo "2870"]
[TimeControl "180+1"]
[EndTime "9:07:25 PDT"]
[Termination "platy3 won by checkmate"]

1. d4 {[%clk 0:03:00.9]} 1... Nf6 {[%clk 0:02:57.2]} 2. Bg5 {[%clk 0:03:01.2]}
2... d5 {[%clk 0:02:56.5]} 3. Nd2 {[%clk 0:03:01.4]} 3... c6 {[%clk 0:02:56.3]}
4. e3 {[%clk 0:03:00.9]} 4... Bf5 {[%clk 0:02:56.2]} 5. Bd3 {[%clk 0:03:01]}
5... Bg6 {[%clk 0:02:54.4]} 6. Ngf3 {[%clk 0:03:00.9]} 6... Nbd7 {[%clk
0:02:54.6]} 7. Ne5 {[%clk 0:02:53.2]} 7... e6 {[%clk 0:02:50.8]} 8. Nxg6 {[%clk
0:02:49]} 8... hxg6 {[%clk 0:02:50.8]} 9. f4 {[%clk 0:02:48.1]} 9... Be7 {[%clk
0:02:48.4]} 10. O-O {[%clk 0:02:46.9]} 10... Qb6 {[%clk 0:02:43.4]} 11. Rb1
{[%clk 0:02:46]} 11... Ng8 {[%clk 0:02:40.1]} 12. Bxe7 {[%clk 0:02:45.4]} 12...
Nxe7 {[%clk 0:02:41]} 13. c4 {[%clk 0:02:45.3]} 13... Nf5 {[%clk 0:02:30.5]} 14.
Qe2 {[%clk 0:02:39.6]} 14... Nf6 {[%clk 0:02:17.5]} 15. c5 {[%clk 0:02:38.6]}
15... Qc7 {[%clk 0:02:13.7]} 16. b4 {[%clk 0:02:37.8]} 16... g5 {[%clk
0:02:11.3]} 17. Bxf5 {[%clk 0:02:34.2]} 17... exf5 {[%clk 0:02:10.6]} 18. Nf3
{[%clk 0:02:32.7]} 18... gxf4 {[%clk 0:02:06.5]} 19. exf4+ {[%clk 0:02:33.6]}
19... Ne4 {[%clk 0:02:07]} 20. Qe3 {[%clk 0:02:28.1]} 20... O-O {[%clk
0:01:59.8]} 21. b5 {[%clk 0:02:24]} 21... Rfe8 {[%clk 0:01:59]} 22. bxc6 {[%clk
0:02:20.5]} 22... bxc6 {[%clk 0:01:57.1]} 23. Qc1 {[%clk 0:01:44.5]} 23... Rab8
{[%clk 0:01:54.9]} 24. Rxb8 {[%clk 0:01:26.5]} 24... Rxb8 {[%clk 0:01:54.5]} 25.
Ne5 {[%clk 0:01:27.1]} 25... f6 {[%clk 0:01:51.9]} 26. Nf3 {[%clk 0:01:11]}
26... Qa5 {[%clk 0:01:43.4]} 27. Nh4 {[%clk 0:01:09.3]} 27... Qxa2 {[%clk
0:01:41.2]} 28. Qa1 {[%clk 0:01:02.3]} 28... Qd2 {[%clk 0:01:33.8]} 29. Nxf5
{[%clk 0:00:11.7]} 29... Rb2 {[%clk 0:01:32.9]} 30. Nh4 {[%clk 0:00:11.1]} 30...
Qxd4+ {[%clk 0:01:26.5]} 31. Kh1 {[%clk 0:00:10.4]} 31... Nf2+ {[%clk
0:01:23.2]} 32. Rxf2 {[%clk 0:00:07.7]} 32... Qxf2 {[%clk 0:01:23.1]} 33. h3
{[%clk 0:00:08.6]} 33... Re2 {[%clk 0:01:18.7]} 34. Nf3 {[%clk 0:00:05.8]} 34...
Qxg2# {[%clk 0:01:18.3]} 0-1

[Event "Early-Titled-Tuesday-Blitz-May-14-2024"]
[Site "Chess.com"]
[Date "2024.05.14"]
[Round "6"]
[White "InitiatingASC"]
[Black "Witik"]
[Result "0-1"]
[WhiteElo "2420"]
[BlackElo "2755"]
[TimeControl "180+1"]
[EndTime "9:07:31 PDT"]
[Termination "Witik won by resignation"]

1. d4 {[%clk 0:03:00.9]} 1... Nf6 {[%clk 0:02:59.8]} 2. c4 {[%clk 0:03:00.6]}
2... g6 {[%clk 0:02:59.9]} 3. Nc3 {[%clk 0:03:00.2]} 3... d5 {[%clk 0:03:00.4]}
4. Nf3 {[%clk 0:02:59.5]} 4... Bg7 {[%clk 0:03:00.6]} 5. Qb3 {[%clk 0:02:58.5]}
5... dxc4 {[%clk 0:03:00.6]} 6. Qxc4 {[%clk 0:02:59.2]} 6... O-O {[%clk
0:03:01.2]} 7. g3 {[%clk 0:02:59]} 7... a6 {[%clk 0:02:56.2]} 8. Bg2 {[%clk
0:02:58.3]} 8... b5 {[%clk 0:02:56.1]} 9. Qb3 {[%clk 0:02:53.3]} 9... Bb7 {[%clk
0:02:34]} 10. O-O {[%clk 0:02:48.6]} 10... Nbd7 {[%clk 0:02:29.9]} 11. Rd1
{[%clk 0:02:48.1]} 11... Qc8 {[%clk 0:02:23.8]} 12. Bg5 {[%clk 0:02:26.9]} 12...
c5 {[%clk 0:02:22.9]} 13. dxc5 {[%clk 0:02:21.2]} 13... Nxc5 {[%clk 0:02:22.7]}
14. Qa3 {[%clk 0:02:19.2]} 14... Ne6 {[%clk 0:02:09.7]} 15. Be3 {[%clk
0:02:12.7]} 15... Ng4 {[%clk 0:02:07]} 16. Bb6 {[%clk 0:02:12.7]} 16... Qc6
{[%clk 0:02:01.3]} 17. Ba5 {[%clk 0:02:04.5]} 17... Nd4 {[%clk 0:01:37]} 18.
Qxe7 {[%clk 0:01:58.4]} 18... Rfe8 {[%clk 0:01:22.6]} 19. Qxb7 {[%clk
0:01:40.8]} 19... Nxe2+ {[%clk 0:01:01]} 20. Nxe2 {[%clk 0:01:29.9]} 20... Qxb7
{[%clk 0:01:01.1]} 21. Nfd4 {[%clk 0:01:14.1]} 21... Qa7 {[%clk 0:00:53.2]} 22.
h3 {[%clk 0:01:08.7]} 22... Rxe2 {[%clk 0:00:46.9]} 23. hxg4 {[%clk 0:00:54.8]}
23... Bxd4 {[%clk 0:00:44.9]} 24. Bxa8 {[%clk 0:00:54.6]} 24... Rxf2 {[%clk
0:00:25.8]} 25. Kh1 {[%clk 0:00:32.3]} 25... Qxa8+ {[%clk 0:00:24.7]} 0-1

[Event "Early-Titled-Tuesday-Blitz-May-14-2024"]
[Site "Chess.com"]
[Date "2024.05.14"]
[Round "6"]
[White "Djager97"]
[Black "Flameboard08"]
[Result "0-1"]
[WhiteElo "2540"]
[BlackElo "2712"]
[TimeControl "180+1"]
[EndTime "9:07:35 PDT"]
[Termination "Flameboard08 won by resignation"]

1. e4 {[%clk 0:03:00.9]} 1... b6 {[%clk 0:03:00]} 2. d4 {[%clk 0:03:00.2]} 2...
Bb7 {[%clk 0:02:59.2]} 3. Nc3 {[%clk 0:03:00.3]} 3... e6 {[%clk 0:02:57.5]} 4.
Nf3 {[%clk 0:02:56.6]} 4... Bb4 {[%clk 0:02:58]} 5. Bd3 {[%clk 0:02:55.8]} 5...
Nf6 {[%clk 0:02:58]} 6. Qe2 {[%clk 0:02:55.7]} 6... d5 {[%clk 0:02:58.3]} 7. e5
{[%clk 0:02:49]} 7... Ne4 {[%clk 0:02:58.1]} 8. Bd2 {[%clk 0:02:49.6]} 8... Bxc3
{[%clk 0:02:58.4]} 9. bxc3 {[%clk 0:02:49.1]} 9... a5 {[%clk 0:02:59]} 10. O-O
{[%clk 0:02:44.6]} 10... Ba6 {[%clk 0:02:58.9]} 11. Ne1 {[%clk 0:02:17.4]} 11...
c5 {[%clk 0:02:50.4]} 12. Bxa6 {[%clk 0:02:15]} 12... Rxa6 {[%clk 0:02:46.7]}
13. f3 {[%clk 0:02:01.5]} 13... Nxd2 {[%clk 0:02:46]} 14. Qxd2 {[%clk
0:02:02.4]} 14... O-O {[%clk 0:02:43.9]} 15. f4 {[%clk 0:02:02.5]} 15... f5
{[%clk 0:02:44]} 16. exf6 {[%clk 0:01:56.8]} 16... Qxf6 {[%clk 0:02:44.4]} 17.
Nd3 {[%clk 0:01:45]} 17... cxd4 {[%clk 0:02:43.2]} 18. Ne5 {[%clk 0:01:45.7]}
18... dxc3 {[%clk 0:02:39.7]} 19. Qxc3 {[%clk 0:01:46.6]} 19... Nd7 {[%clk
0:02:32]} 20. Qd3 {[%clk 0:01:27.5]} 20... Nc5 {[%clk 0:02:32.1]} 21. Qb5 {[%clk
0:01:11.8]} 21... Kh8 {[%clk 0:02:15.7]} 22. Nd7 {[%clk 0:01:09.8]} 22... Qd4+
{[%clk 0:02:14.5]} 23. Kh1 {[%clk 0:01:08.9]} 23... Rfa8 {[%clk 0:02:09.7]} 24.
Rae1 {[%clk 0:00:34.5]} 24... Ne4 {[%clk 0:02:06.3]} 25. Qe2 {[%clk 0:00:17.2]}
25... R6a7 {[%clk 0:02:01.7]} 26. Ne5 {[%clk 0:00:16.9]} 26... Rc7 {[%clk
0:02:00.6]} 27. Rd1 {[%clk 0:00:09.6]} 27... Qa4 {[%clk 0:01:58.2]} 28. f5
{[%clk 0:00:09.7]} 28... exf5 {[%clk 0:01:58.2]} 29. Rxf5 {[%clk 0:00:09.9]}
29... Qxc2 {[%clk 0:01:54.2]} 30. Qh5 {[%clk 0:00:09.6]} 30... Nf6 {[%clk
0:01:43.5]} 31. Rxf6 {[%clk 0:00:09.2]} 31... gxf6 {[%clk 0:01:44.4]} 32. Rf1
{[%clk 0:00:05.6]} 32... Qe4 {[%clk 0:01:37.8]} 33. Nf7+ {[%clk 0:00:03.3]}
33... Kg7 {[%clk 0:01:38]} 34. Nh6 {[%clk 0:00:03.4]} 34... Qg6 {[%clk 0:01:38]}
35. Nf5+ {[%clk 0:00:03.8]} 35... Kh8 {[%clk 0:01:37.5]} 36. Qf3 {[%clk
0:00:02.6]} 36... Rd8 {[%clk 0:01:35.4]} 37. h3 {[%clk 0:00:02.8]} 37... d4
{[%clk 0:01:34.7]} 38. Qf4 {[%clk 0:00:02.5]} 38... Rcd7 {[%clk 0:01:34.2]} 39.
Ng3 {[%clk 0:00:01.9]} 39... d3 {[%clk 0:01:34.4]} 40. Ne4 {[%clk 0:00:02.3]}
40... d2 {[%clk 0:01:33.6]} 41. Rd1 {[%clk 0:00:02.9]} 41... Rd4 {[%clk
0:01:30.8]} 42. Qxf6+ {[%clk 0:00:03.2]} 42... Qxf6 {[%clk 0:01:31]} 43. Nxf6
{[%clk 0:00:04.1]} 0-1

[Event "Early-Titled-Tuesday-Blitz-May-14-2024"]
[Site "Chess.com"]
[Date "2024.05.14"]
[Round "6"]
[White "motivated_bishop"]
[Black "invisible_s0ul"]
[Result "1-0"]
[WhiteElo "2498"]
[BlackElo "2327"]
[TimeControl "180+1"]
[EndTime "9:07:36 PDT"]
[Termination "motivated_bishop won by resignation"]

1. d4 {[%clk 0:02:45.4]} 1... Nf6 {[%clk 0:02:56.3]} 2. c4 {[%clk 0:02:45.2]}
2... c6 {[%clk 0:02:56.7]} 3. Nc3 {[%clk 0:02:45]} 3... d5 {[%clk 0:02:55.1]} 4.
cxd5 {[%clk 0:02:45.3]} 4... cxd5 {[%clk 0:02:53.9]} 5. Bf4 {[%clk 0:02:45.9]}
5... Nc6 {[%clk 0:02:50.5]} 6. e3 {[%clk 0:02:46.2]} 6... a6 {[%clk 0:02:50]} 7.
Be2 {[%clk 0:02:44.1]} 7... Bf5 {[%clk 0:02:48]} 8. Qb3 {[%clk 0:02:43.2]} 8...
b5 {[%clk 0:01:54.1]} 9. Nf3 {[%clk 0:02:39.8]} 9... Na5 {[%clk 0:01:32.7]} 10.
Qd1 {[%clk 0:02:37.2]} 10... e6 {[%clk 0:01:27.3]} 11. O-O {[%clk 0:02:33.6]}
11... Be7 {[%clk 0:01:25.4]} 12. Ne5 {[%clk 0:02:33.7]} 12... O-O {[%clk
0:01:23.4]} 13. a4 {[%clk 0:02:34]} 13... b4 {[%clk 0:01:21.9]} 14. Nb1 {[%clk
0:02:34.6]} 14... Nd7 {[%clk 0:01:05.2]} 15. Nd2 {[%clk 0:02:30.8]} 15... Nxe5
{[%clk 0:01:02.2]} 16. Bxe5 {[%clk 0:02:31.7]} 16... Bd6 {[%clk 0:00:56.3]} 17.
Bxd6 {[%clk 0:02:26.3]} 17... Qxd6 {[%clk 0:00:57.2]} 18. Nb3 {[%clk 0:02:24.3]}
18... Nc4 {[%clk 0:00:53.6]} 19. Nc5 {[%clk 0:02:15.4]} 19... a5 {[%clk
0:00:31.6]} 20. b3 {[%clk 0:02:11.7]} 20... Nb6 {[%clk 0:00:26.7]} 21. Bb5
{[%clk 0:02:09.2]} 21... e5 {[%clk 0:00:23.7]} 22. Qf3 {[%clk 0:01:59.6]} 22...
Bg6 {[%clk 0:00:17.5]} 23. Qg3 {[%clk 0:01:57.2]} 23... f6 {[%clk 0:00:15.7]}
24. Rac1 {[%clk 0:01:54.1]} 24... Rac8 {[%clk 0:00:14.9]} 25. Nb7 {[%clk
0:01:46.8]} 25... Qe7 {[%clk 0:00:13.3]} 26. Nxa5 {[%clk 0:01:46.7]} 26... exd4
{[%clk 0:00:08.8]} 27. Nc6 {[%clk 0:01:45.3]} 27... Qc7 {[%clk 0:00:06.1]} 28.
exd4 {[%clk 0:01:23.2]} 28... Qxg3 {[%clk 0:00:04.5]} 29. hxg3 {[%clk
0:01:24.1]} 29... Be4 {[%clk 0:00:03.9]} 30. Ne7+ {[%clk 0:01:24.1]} 30... Kf7
{[%clk 0:00:02.7]} 31. Nxc8 {[%clk 0:01:24.3]} 31... Rxc8 {[%clk 0:00:03.6]} 32.
Rxc8 {[%clk 0:01:23.9]} 32... Nxc8 {[%clk 0:00:04.5]} 33. Rc1 {[%clk 0:01:24.1]}
33... Nd6 {[%clk 0:00:04.4]} 34. Rc7+ {[%clk 0:01:17.1]} 34... Kg6 {[%clk
0:00:03.7]} 35. Be2 {[%clk 0:01:15.2]} 35... Bc2 {[%clk 0:00:02.6]} 36. Rxc2
{[%clk 0:01:14.8]} 1-0

[Event "Early-Titled-Tuesday-Blitz-May-14-2024"]
[Site "Chess.com"]
[Date "2024.05.14"]
[Round "6"]
[White "TenisMaster"]
[Black "MrLion3000"]
[Result "0-1"]
[WhiteElo "2903"]
[BlackElo "2782"]
[TimeControl "180+1"]
[EndTime "9:07:37 PDT"]
[Termination "MrLion3000 won by resignation"]

1. e4 {[%clk 0:03:00.9]} 1... e5 {[%clk 0:02:59.8]} 2. Nf3 {[%clk 0:03:00.7]}
2... Nc6 {[%clk 0:02:59.5]} 3. Bc4 {[%clk 0:02:59.5]} 3... Nf6 {[%clk 0:02:59]}
4. d3 {[%clk 0:02:59.5]} 4... Be7 {[%clk 0:02:59.1]} 5. O-O {[%clk 0:02:58]}
5... O-O {[%clk 0:02:59.6]} 6. a4 {[%clk 0:02:58.4]} 6... d6 {[%clk 0:02:59.7]}
7. Nc3 {[%clk 0:02:54.3]} 7... h6 {[%clk 0:02:58]} 8. a5 {[%clk 0:02:52.4]} 8...
a6 {[%clk 0:02:57.9]} 9. h3 {[%clk 0:02:46.3]} 9... Be6 {[%clk 0:02:58.3]} 10.
Bxe6 {[%clk 0:02:42.9]} 10... fxe6 {[%clk 0:02:59.2]} 11. Ne2 {[%clk 0:02:42.9]}
11... Qe8 {[%clk 0:02:58]} 12. Ng3 {[%clk 0:02:42.6]} 12... Nh5 {[%clk
0:02:53.3]} 13. Be3 {[%clk 0:02:32]} 13... Nf4 {[%clk 0:02:51.6]} 14. c3 {[%clk
0:02:30]} 14... Qf7 {[%clk 0:02:50.3]} 15. Nh2 {[%clk 0:02:15.6]} 15... Qg6
{[%clk 0:02:45.6]} 16. Kh1 {[%clk 0:01:40.6]} 16... Bh4 {[%clk 0:02:36.2]} 17.
Bxf4 {[%clk 0:01:38.3]} 17... exf4 {[%clk 0:02:35.1]} 18. Ne2 {[%clk 0:01:38]}
18... Ne5 {[%clk 0:02:24.8]} 19. Nd4 {[%clk 0:01:37.9]} 19... c5 {[%clk
0:02:14.1]} 20. Ndf3 {[%clk 0:01:37.8]} 20... Nxf3 {[%clk 0:02:10.6]} 21. Nxf3
{[%clk 0:01:38.7]} 21... Be7 {[%clk 0:02:11]} 22. Qb3 {[%clk 0:01:36.8]} 22...
Rab8 {[%clk 0:02:10.6]} 23. Rfe1 {[%clk 0:01:36.5]} 23... Qf7 {[%clk 0:02:06.3]}
24. d4 {[%clk 0:01:35.6]} 24... Rfc8 {[%clk 0:02:01.6]} 25. Rad1 {[%clk
0:01:28.5]} 25... g5 {[%clk 0:01:57.3]} 26. dxc5 {[%clk 0:00:59.2]} 26... Rxc5
{[%clk 0:01:58.2]} 27. e5 {[%clk 0:00:52.9]} 27... d5 {[%clk 0:01:54.9]} 28. Nd4
{[%clk 0:00:52.9]} 28... Bd8 {[%clk 0:01:37.9]} 29. Qb4 {[%clk 0:00:44.9]} 29...
Rbc8 {[%clk 0:01:37.9]} 30. Qa4 {[%clk 0:00:39]} 30... Rxa5 {[%clk 0:01:35.4]}
31. Qc2 {[%clk 0:00:37.8]} 31... Rac5 {[%clk 0:01:33.3]} 32. Qe2 {[%clk
0:00:36.6]} 32... h5 {[%clk 0:01:32.3]} 33. Kg1 {[%clk 0:00:34.6]} 33... Qg6
{[%clk 0:01:31.4]} 34. Qd3 {[%clk 0:00:32.8]} 34... Qf7 {[%clk 0:01:28.4]} 35.
Qd2 {[%clk 0:00:30]} 35... Rc4 {[%clk 0:01:27.2]} 36. f3 {[%clk 0:00:29.4]}
36... Bb6 {[%clk 0:01:27.2]} 37. Kh2 {[%clk 0:00:28.7]} 37... Bxd4 {[%clk
0:01:27.3]} 38. cxd4 {[%clk 0:00:29.2]} 38... Rc2 {[%clk 0:01:26.4]} 39. Qb4
{[%clk 0:00:29.4]} 39... g4 {[%clk 0:01:25.7]} 40. Rd3 {[%clk 0:00:23.9]} 40...
Qg6 {[%clk 0:01:20.2]} 41. Rd2 {[%clk 0:00:17.2]} 41... gxf3 {[%clk 0:01:18.6]}
42. gxf3 {[%clk 0:00:13.6]} 42... Qg3+ {[%clk 0:01:17.7]} 43. Kh1 {[%clk
0:00:14]} 43... Qxe1+ {[%clk 0:01:18.6]} 0-1

[Event "Early-Titled-Tuesday-Blitz-May-14-2024"]
[Site "Chess.com"]
[Date "2024.05.14"]
[Round "6"]
[White "jraosam"]
[Black "EvgenyBurmakin"]
[Result "1-0"]
[WhiteElo "2069"]
[BlackElo "2318"]
[TimeControl "180+1"]
[EndTime "9:07:39 PDT"]
[Termination "jraosam won on time"]

1. e4 {[%clk 0:03:00.9]} 1... c5 {[%clk 0:02:58.7]} 2. Nc3 {[%clk 0:03:00.1]}
2... Nc6 {[%clk 0:02:58.2]} 3. g3 {[%clk 0:03:00.4]} 3... g6 {[%clk 0:02:58.1]}
4. Bg2 {[%clk 0:03:00.8]} 4... Bg7 {[%clk 0:02:58.6]} 5. d3 {[%clk 0:03:01]}
5... d6 {[%clk 0:02:59.1]} 6. Be3 {[%clk 0:03:01.4]} 6... e6 {[%clk 0:02:54.5]}
7. Qd2 {[%clk 0:03:01]} 7... Rb8 {[%clk 0:02:44.6]} 8. Nge2 {[%clk 0:02:59.5]}
8... b5 {[%clk 0:02:36.1]} 9. O-O {[%clk 0:02:54.8]} 9... b4 {[%clk 0:02:33.8]}
10. Nd1 {[%clk 0:02:54.4]} 10... Nge7 {[%clk 0:02:28.4]} 11. Bh6 {[%clk
0:02:51.9]} 11... O-O {[%clk 0:02:27.8]} 12. Bxg7 {[%clk 0:02:51.4]} 12... Kxg7
{[%clk 0:02:28.7]} 13. d4 {[%clk 0:02:50.8]} 13... Ba6 {[%clk 0:02:09.2]} 14. d5
{[%clk 0:02:47.6]} 14... Nd4 {[%clk 0:01:54.5]} 15. Nxd4 {[%clk 0:02:47.6]}
15... Bxf1 {[%clk 0:01:54]} 16. Bxf1 {[%clk 0:02:47.5]} 16... cxd4 {[%clk
0:01:53.3]} 17. Qxd4+ {[%clk 0:02:47.5]} 17... e5 {[%clk 0:01:53.9]} 18. Qxa7
{[%clk 0:02:43.4]} 18... Re8 {[%clk 0:01:40.6]} 19. a4 {[%clk 0:02:27.2]} 19...
bxa3 {[%clk 0:01:39.9]} 20. Rxa3 {[%clk 0:02:26.9]} 20... Qb6 {[%clk 0:01:33.1]}
21. Qxb6 {[%clk 0:02:25.7]} 21... Rxb6 {[%clk 0:01:34]} 22. Ra7 {[%clk 0:02:25]}
22... Kf6 {[%clk 0:01:16.5]} 23. b3 {[%clk 0:02:23.8]} 23... Rc8 {[%clk
0:01:14.6]} 24. Ne3 {[%clk 0:02:23.8]} 24... Ng8 {[%clk 0:00:23.9]} 25. Bd3
{[%clk 0:02:16.8]} 25... Rbb8 {[%clk 0:00:17.8]} 26. Nc4 {[%clk 0:02:15.9]}
26... Rd8 {[%clk 0:00:16.6]} 27. Ra6 {[%clk 0:02:07.3]} 27... Ke7 {[%clk
0:00:15.8]} 28. Na5 {[%clk 0:02:05.6]} 28... Kd7 {[%clk 0:00:06.2]} 29. Nc6
{[%clk 0:02:05.9]} 29... Rdc8 {[%clk 0:00:06.1]} 30. Nxb8+ {[%clk 0:02:04.9]}
30... Rxb8 {[%clk 0:00:07]} 31. Ra7+ {[%clk 0:02:04.9]} 31... Ke8 {[%clk
0:00:07.4]} 32. Rc7 {[%clk 0:02:02.7]} 32... Nf6 {[%clk 0:00:07]} 33. f3 {[%clk
0:02:02.6]} 33... Nd7 {[%clk 0:00:06.4]} 34. Ba6 {[%clk 0:01:44.5]} 34... Nc5
{[%clk 0:00:04.9]} 35. Rc6 {[%clk 0:01:38.8]} 35... Kd7 {[%clk 0:00:04.4]} 36.
Bc4 {[%clk 0:01:36.6]} 36... Ra8 {[%clk 0:00:03.3]} 37. b4 {[%clk 0:01:35]}
37... Ra1+ {[%clk 0:00:02.4]} 38. Kg2 {[%clk 0:01:34.6]} 38... Na4 {[%clk
0:00:01.8]} 39. Bb5 {[%clk 0:01:34.5]} 1-0

[Event "Early-Titled-Tuesday-Blitz-May-14-2024"]
[Site "Chess.com"]
[Date "2024.05.14"]
[Round "6"]
[White "jup1978"]
[Black "Anu-triz"]
[Result "1-0"]
[WhiteElo "2472"]
[BlackElo "2299"]
[TimeControl "180+1"]
[EndTime "9:07:40 PDT"]
[Termination "jup1978 won by resignation"]

1. d4 {[%clk 0:02:54.2]} 1... Nf6 {[%clk 0:02:57.4]} 2. Nf3 {[%clk 0:02:51.4]}
2... g6 {[%clk 0:02:57.5]} 3. g3 {[%clk 0:02:49.3]} 3... Bg7 {[%clk 0:02:57.6]}
4. Bg2 {[%clk 0:02:50.2]} 4... O-O {[%clk 0:02:58]} 5. c4 {[%clk 0:02:50.8]}
5... d6 {[%clk 0:02:58.1]} 6. Nc3 {[%clk 0:02:50.6]} 6... c5 {[%clk 0:02:52.6]}
7. O-O {[%clk 0:02:49.6]} 7... cxd4 {[%clk 0:02:50.5]} 8. Nxd4 {[%clk
0:02:50.5]} 8... Nbd7 {[%clk 0:02:39.2]} 9. Re1 {[%clk 0:02:46.5]} 9... a5
{[%clk 0:02:34.6]} 10. b3 {[%clk 0:02:46.5]} 10... Nc5 {[%clk 0:02:30.3]} 11.
Bb2 {[%clk 0:02:46]} 11... Nfd7 {[%clk 0:01:45.6]} 12. Ndb5 {[%clk 0:02:36.3]}
12... Rb8 {[%clk 0:01:45.1]} 13. Qc2 {[%clk 0:02:28.8]} 13... b6 {[%clk
0:01:44.6]} 14. Nd5 {[%clk 0:02:19.3]} 14... Bb7 {[%clk 0:01:39.4]} 15. Bxg7
{[%clk 0:02:17.7]} 15... Kxg7 {[%clk 0:01:38.8]} 16. Rad1 {[%clk 0:02:18]} 16...
Bxd5 {[%clk 0:01:33.1]} 17. Bxd5 {[%clk 0:02:15.7]} 17... Nf6 {[%clk 0:01:33]}
18. Bg2 {[%clk 0:02:14.1]} 18... Qd7 {[%clk 0:01:17.9]} 19. e4 {[%clk
0:02:11.5]} 19... Rfd8 {[%clk 0:01:06.4]} 20. e5 {[%clk 0:02:09.2]} 20... Ne8
{[%clk 0:01:06]} 21. exd6 {[%clk 0:02:05.4]} 21... Nxd6 {[%clk 0:01:02.9]} 22.
Nxd6 {[%clk 0:02:04.4]} 22... exd6 {[%clk 0:01:02.2]} 23. Rd5 {[%clk 0:02:04.8]}
23... Re8 {[%clk 0:00:48.7]} 24. Red1 {[%clk 0:02:03.3]} 24... Rbd8 {[%clk
0:00:41.9]} 25. h4 {[%clk 0:01:57]} 25... Kg8 {[%clk 0:00:31.8]} 26. h5 {[%clk
0:01:56.1]} 26... Qe7 {[%clk 0:00:29.3]} 27. Qc3 {[%clk 0:01:49]} 27... Ne4
{[%clk 0:00:19.8]} 28. Bxe4 {[%clk 0:01:36.3]} 28... Qxe4 {[%clk 0:00:19.1]} 29.
hxg6 {[%clk 0:01:36.7]} 29... hxg6 {[%clk 0:00:17.7]} 30. Rxd6 {[%clk
0:01:35.2]} 30... Rxd6 {[%clk 0:00:18.6]} 31. Rxd6 {[%clk 0:01:35.5]} 31... Qb1+
{[%clk 0:00:17.8]} 32. Kg2 {[%clk 0:01:28.7]} 32... Qxa2 {[%clk 0:00:17.2]} 33.
Rxb6 {[%clk 0:01:26.1]} 33... Qe2 {[%clk 0:00:16.7]} 34. Qf3 {[%clk 0:01:21.6]}
34... Qb2 {[%clk 0:00:15.1]} 35. Rb7 {[%clk 0:01:18.5]} 35... Qg7 {[%clk
0:00:14]} 36. Qd5 {[%clk 0:01:17.1]} 36... Rf8 {[%clk 0:00:14.1]} 37. Qxa5
{[%clk 0:01:16.4]} 37... Qf6 {[%clk 0:00:14]} 38. Qd5 {[%clk 0:01:16.6]} 38...
Qg5 {[%clk 0:00:12.2]} 39. Qxg5 {[%clk 0:01:16.1]} 1-0

[Event "Early-Titled-Tuesday-Blitz-May-14-2024"]
[Site "Chess.com"]
[Date "2024.05.14"]
[Round "6"]
[White "AnishOnYoutube"]
[Black "bascheyaro"]
[Result "1-0"]
[WhiteElo "3014"]
[BlackElo "2813"]
[TimeControl "180+1"]
[EndTime "9:07:45 PDT"]
[Termination "AnishOnYoutube won by resignation"]

1. e4 {[%clk 0:03:00.9]} 1... e6 {[%clk 0:03:00.1]} 2. d4 {[%clk 0:02:59.5]}
2... d5 {[%clk 0:03:00.4]} 3. e5 {[%clk 0:03:00.2]} 3... c5 {[%clk 0:03:00.7]}
4. c3 {[%clk 0:03:00.9]} 4... Qb6 {[%clk 0:03:01.2]} 5. Nf3 {[%clk 0:03:01.1]}
5... Bd7 {[%clk 0:03:01.7]} 6. Be2 {[%clk 0:03:01.7]} 6... Bb5 {[%clk
0:03:02.1]} 7. O-O {[%clk 0:03:00.5]} 7... Bxe2 {[%clk 0:03:02.2]} 8. Qxe2
{[%clk 0:03:00.9]} 8... Nc6 {[%clk 0:03:02.5]} 9. dxc5 {[%clk 0:02:57.2]} 9...
Bxc5 {[%clk 0:03:02.3]} 10. b4 {[%clk 0:02:57.8]} 10... Bf8 {[%clk 0:03:02.6]}
11. Nbd2 {[%clk 0:02:53.7]} 11... Nge7 {[%clk 0:03:02.4]} 12. Nb3 {[%clk
0:02:51.5]} 12... Ng6 {[%clk 0:02:50.7]} 13. Re1 {[%clk 0:02:42.8]} 13... Be7
{[%clk 0:02:49.7]} 14. a4 {[%clk 0:02:37.9]} 14... Qc7 {[%clk 0:02:35.4]} 15. a5
{[%clk 0:02:34.7]} 15... a6 {[%clk 0:02:28.1]} 16. Bd2 {[%clk 0:02:28.4]} 16...
O-O {[%clk 0:02:26.9]} 17. Nbd4 {[%clk 0:02:21.3]} 17... Rfc8 {[%clk 0:02:20.4]}
18. g3 {[%clk 0:02:17.2]} 18... h6 {[%clk 0:02:14.7]} 19. h4 {[%clk 0:02:16.7]}
19... Bf8 {[%clk 0:02:14.9]} 20. Kh2 {[%clk 0:02:02.9]} 20... Nge7 {[%clk
0:02:08.6]} 21. Nb3 {[%clk 0:01:51.2]} 21... b6 {[%clk 0:01:48.1]} 22. axb6
{[%clk 0:01:50]} 22... Qxb6 {[%clk 0:01:48.5]} 23. Be3 {[%clk 0:01:49.8]} 23...
Qb5 {[%clk 0:01:42.7]} 24. Qxb5 {[%clk 0:01:36.7]} 24... axb5 {[%clk 0:01:43.6]}
25. Rxa8 {[%clk 0:01:31.7]} 25... Rxa8 {[%clk 0:01:44.5]} 26. Nbd4 {[%clk
0:01:31.9]} 26... Rb8 {[%clk 0:01:03.5]} 27. Ra1 {[%clk 0:01:28.8]} 27... Nxd4
{[%clk 0:01:03.8]} 28. Nxd4 {[%clk 0:01:29.2]} 28... Nf5 {[%clk 0:01:04.3]} 29.
Nxf5 {[%clk 0:01:29.1]} 29... exf5 {[%clk 0:01:04.6]} 30. Ra7 {[%clk 0:01:21.5]}
30... g5 {[%clk 0:00:20.5]} 31. hxg5 {[%clk 0:01:18.7]} 31... hxg5 {[%clk
0:00:21.4]} 32. Rd7 {[%clk 0:01:17]} 32... f4 {[%clk 0:00:16.5]} 33. gxf4 {[%clk
0:01:15.5]} 33... gxf4 {[%clk 0:00:17.4]} 34. Bd4 {[%clk 0:01:13.3]} 34... Kg7
{[%clk 0:00:13.9]} 35. e6+ {[%clk 0:01:10.4]} 35... Kg6 {[%clk 0:00:14.4]} 36.
e7 {[%clk 0:01:08.1]} 36... Bxe7 {[%clk 0:00:03.5]} 37. Rxe7 {[%clk 0:01:08.1]}
1-0